[Event "15. ročník Dobrovický rapid Tereos TTD a.s."]
[Site "Dobrovice, Czech Republic"]
[Date "2020.02.29"]
[Round "7.7"]
[White "Vranova Zdenka"]
[Black "Burdalev Kirill"]
[Result "0-1"]
[TimeControl "15m + 3s / tah"]
[WhiteElo "1970"]
[BlackElo "2334"]

1. e4 {[%clk 00:15:05]} Nf6 {[%clk 00:15:05]} {[%emt 00:00:01]} 2. e5 {[%clk
00:15:06]} {[%emt 00:00:02]} Nd5 {[%clk 00:15:07]} {[%emt 00:00:01]} 3. d4
{[%clk 00:15:08]} d6 {[%clk 00:15:10]} 4. exd6 {[%clk 00:15:10]} {[%emt
00:00:02]} exd6 {[%clk 00:15:12]} {[%emt 00:00:01]} 5. Nf3 {[%clk 00:15:12]}
Be7 {[%clk 00:15:13]} {[%emt 00:00:02]} 6. Bd3 {[%clk 00:15:13]} {[%emt
00:00:02]} Bg4 {[%clk 00:15:11]} {[%emt 00:00:05]} 7. c3 {[%clk 00:15:13]}
{[%emt 00:00:03]} Nc6 {[%clk 00:15:05]} {[%emt 00:00:09]} 8. Be4 {[%clk
00:15:14]} {[%emt 00:00:02]} Nf6 {[%clk 00:14:52]} {[%emt 00:00:15]} 9. Bc2
{[%clk 00:15:16]} {[%emt 00:00:02]} O-O {[%clk 00:14:44]} {[%emt 00:00:11]} 10.
O-O {[%clk 00:15:16]} {[%emt 00:00:03]} d5 {[%clk 00:14:39]} {[%emt 00:00:08]}
11. Bg5 {[%clk 00:15:15]} {[%emt 00:00:04]} h6 {[%clk 00:14:30]} {[%emt
00:00:12]} 12. Bh4 {[%clk 00:15:15]} {[%emt 00:00:03]} g5 {[%clk 00:14:24]}
{[%emt 00:00:09]} 13. Bg3 {[%clk 00:15:17]} {[%emt 00:00:01]} Ne4 {[%clk
00:14:26]} 14. Nbd2 {[%clk 00:15:07]} {[%emt 00:00:13]} f5 {[%clk 00:14:28]}
{[%emt 00:00:02]} 15. Be5 {[%clk 00:15:08]} {[%emt 00:00:01]} Nxd2 {[%clk
00:14:16]} {[%emt 00:00:15]} 16. Qxd2 {[%clk 00:15:10]} {[%emt 00:00:01]} Bxf3
{[%clk 00:13:39]} {[%emt 00:00:39]} 17. gxf3 {[%clk 00:15:12]} {[%emt
00:00:02]} Bd6 {[%clk 00:13:21]} {[%emt 00:00:20]} 18. f4 {[%clk 00:14:54]}
{[%emt 00:00:22]} Bxe5 {[%clk 00:12:41]} {[%emt 00:00:43]} 19. fxe5 {[%clk
00:14:55]} {[%emt 00:00:01]} Qe7 {[%clk 00:12:25]} {[%emt 00:00:20]} 20. Kh1
{[%clk 00:14:51]} {[%emt 00:00:08]} Nd8 {[%clk 00:12:18]} {[%emt 00:00:08]} 21.
Rg1 {[%clk 00:14:46]} {[%emt 00:00:09]} Ne6 {[%clk 00:12:15]} {[%emt 00:00:06]}
22. Qe2 {[%clk 00:14:44]} {[%emt 00:00:05]} Qf7 {[%clk 00:11:32]} {[%emt
00:00:46]} 23. Qe3 {[%clk 00:13:58]} {[%emt 00:00:46]} Kh8 {[%clk 00:11:01]}
{[%emt 00:00:35]} 24. Rae1 {[%clk 00:13:53]} {[%emt 00:00:08]} Rg8 {[%clk
00:10:31]} {[%emt 00:00:33]} 25. Qh3 {[%clk 00:13:48]} {[%emt 00:00:07]} Kg7
{[%clk 00:09:14]} {[%emt 00:01:22]} 26. Bxf5 {[%clk 00:11:59]} {[%emt
00:01:52]} Nf4 {[%clk 00:09:16]} {[%emt 00:00:01]} 27. Qg4 {[%clk 00:12:01]}
Kf8 {[%clk 00:07:37]} {[%emt 00:01:42]} 28. Bc2 {[%clk 00:11:49]} {[%emt
00:00:15]} Ke7 {[%clk 00:07:19]} {[%emt 00:00:21]} 29. Re3 {[%clk 00:11:26]}
{[%emt 00:00:25]} Raf8 {[%clk 00:07:14]} {[%emt 00:00:09]} 30. Qd1 {[%clk
00:11:09]} {[%emt 00:00:19]} h5 {[%clk 00:06:46]} {[%emt 00:00:32]} 31. Reg3
{[%clk 00:10:00]} {[%emt 00:01:12]} g4 {[%clk 00:06:46]} {[%emt 00:00:03]} 32.
f3 {[%clk 00:09:05]} {[%emt 00:00:58]} Nh3 {[%clk 00:06:40]} {[%emt 00:00:09]}
33. Rf1 {[%clk 00:09:04]} {[%emt 00:00:04]} h4 {[%clk 00:06:36]} {[%emt
00:00:07]} 34. Rg2 {[%clk 00:08:50]} {[%emt 00:00:16]} g3 {[%clk 00:05:58]}
{[%emt 00:00:41]} 35. Qe2 {[%clk 00:07:11]} {[%emt 00:01:42]} Nf4 {[%clk
00:05:54]} {[%emt 00:00:06]} 36. Qd2 {[%clk 00:07:12]} {[%emt 00:00:03]} Nxg2
{[%clk 00:05:41]} {[%emt 00:00:17]} 37. Kxg2 {[%clk 00:07:14]} {[%emt
00:00:01]} h3+ {[%clk 00:05:29]} {[%emt 00:00:15]} 38. Kg1 {[%clk 00:07:10]}
{[%emt 00:00:07]} gxh2+ {[%clk 00:04:41]} {[%emt 00:00:50]} 39. Kh1 {[%clk
00:07:11]} {[%emt 00:00:01]} Rg1+ {[%clk 00:04:28]} {[%emt 00:00:17]} 40. Rxg1
{[%clk 00:07:00]} {[%emt 00:00:15]} hxg1=Q+ {[%clk 00:04:27]} {[%emt 00:00:04]}
41. Kxg1 {[%clk 00:07:01]} {[%emt 00:00:02]} Rg8+ {[%clk 00:04:25]} {[%emt
00:00:04]} 42. Kf1 {[%clk 00:06:57]} {[%emt 00:00:07]} Qxf3+ {[%clk 00:04:26]}
{[%emt 00:00:03]} 43. Qf2 {[%clk 00:06:55]} {[%emt 00:00:05]} Qxf2+ {[%clk
00:04:27]} {[%emt 00:00:02]} 44. Kxf2 {[%clk 00:06:57]} h2 {[%clk 00:04:28]}
{[%emt 00:00:01]} 0-1

[Event "15. ročník Dobrovický rapid Tereos TTD a.s."]
[Site "Dobrovice, Czech Republic"]
[Date "2020.02.29"]
[Round "7.8"]
[White "Szeko Ludovit"]
[Black "Postupa Pavel ml."]
[Result "0-1"]
[TimeControl "15m + 3s / tah"]
[WhiteElo "2051"]
[BlackElo "2164"]

1. e4 {[%clk 00:15:04]} {[%emt 00:00:02]} c5 {[%clk 00:15:04]} {[%emt
00:00:02]} 2. Nf3 {[%clk 00:15:05]} {[%emt 00:00:02]} d6 {[%clk 00:15:06]}
{[%emt 00:00:01]} 3. d4 {[%clk 00:15:08]} cxd4 {[%clk 00:15:08]} {[%emt
00:00:02]} 4. c3 {[%clk 00:15:10]} dxc3 {[%clk 00:15:08]} {[%emt 00:00:03]} 5.
Nxc3 {[%clk 00:15:12]} {[%emt 00:00:01]} Nc6 {[%clk 00:15:06]} {[%emt
00:00:04]} 6. Bc4 {[%clk 00:15:14]} {[%emt 00:00:01]} e6 {[%clk 00:15:02]}
{[%emt 00:00:07]} 7. O-O {[%clk 00:15:13]} {[%emt 00:00:04]} Nf6 {[%clk
00:15:03]} {[%emt 00:00:02]} 8. Qe2 {[%clk 00:15:15]} {[%emt 00:00:01]} a6
{[%clk 00:15:02]} {[%emt 00:00:04]} 9. Rd1 {[%clk 00:15:17]} {[%emt 00:00:02]}
Qc7 {[%clk 00:15:02]} {[%emt 00:00:02]} 10. Bf4 {[%clk 00:15:16]} {[%emt
00:00:05]} Ne5 {[%clk 00:11:55]} {[%emt 00:03:10]} 11. Bb3 {[%clk 00:15:09]}
{[%emt 00:00:09]} Be7 {[%clk 00:11:55]} {[%emt 00:00:03]} 12. Rac1 {[%clk
00:15:11]} {[%emt 00:00:01]} Qb8 {[%clk 00:11:56]} {[%emt 00:00:01]} 13. Bg3
{[%clk 00:15:01]} {[%emt 00:00:14]} O-O {[%clk 00:11:51]} {[%emt 00:00:08]} 14.
Nd4 {[%clk 00:14:59]} {[%emt 00:00:04]} Bd7 {[%clk 00:08:22]} {[%emt 00:03:32]}
15. a4 {[%clk 00:14:57]} {[%emt 00:00:05]} Rd8 {[%clk 00:07:58]} {[%emt
00:00:27]} 16. Kh1 {[%clk 00:14:34]} {[%emt 00:00:26]} Nc6 {[%clk 00:07:54]}
{[%emt 00:00:07]} 17. f4 {[%clk 00:14:07]} {[%emt 00:00:30]} Nxd4 {[%clk
00:07:32]} {[%emt 00:00:25]} 18. Rxd4 {[%clk 00:14:08]} {[%emt 00:00:02]} Be8
{[%clk 00:07:09]} {[%emt 00:00:25]} 19. Rcd1 {[%clk 00:14:09]} {[%emt
00:00:03]} Qc7 {[%clk 00:07:07]} {[%emt 00:00:05]} 20. Bc2 {[%clk 00:13:52]}
{[%emt 00:00:20]} e5 {[%clk 00:07:02]} {[%emt 00:00:09]} 21. Rc4 {[%clk
00:13:34]} {[%emt 00:00:20]} Qb6 {[%clk 00:06:54]} {[%emt 00:00:10]} 22. a5
{[%clk 00:13:29]} {[%emt 00:00:09]} Qxa5 {[%clk 00:05:50]} {[%emt 00:01:07]} 23.
Nd5 {[%clk 00:13:05]} {[%emt 00:00:26]} Nxd5 {[%clk 00:05:39]} {[%emt
00:00:14]} 24. Rxd5 {[%clk 00:13:06]} {[%emt 00:00:03]} Bb5 {[%clk 00:05:26]}
{[%emt 00:00:16]} 25. Qd1 {[%clk 00:12:32]} {[%emt 00:00:37]} Qb6 {[%clk
00:04:56]} {[%emt 00:00:33]} 26. Rb4 {[%clk 00:12:21]} {[%emt 00:00:15]} Rac8
{[%clk 00:04:36]} {[%emt 00:00:23]} 27. Bd3 {[%clk 00:12:15]} {[%emt 00:00:09]}
Qe3 {[%clk 00:04:21]} {[%emt 00:00:18]} 28. Bc2 {[%clk 00:11:28]} {[%emt
00:00:50]} exf4 {[%clk 00:04:04]} {[%emt 00:00:20]} 29. Rb3 {[%clk 00:11:16]}
{[%emt 00:00:15]} Qe2 {[%clk 00:03:39]} {[%emt 00:00:28]} 30. Bxf4 {[%clk
00:10:54]} {[%emt 00:00:25]} Rxc2 {[%clk 00:03:26]} {[%emt 00:00:16]} 31. Qd2
Rxd2 0-1

[Event "15. ročník Dobrovický rapid Tereos TTD a.s."]
[Site "Dobrovice, Czech Republic"]
[Date "2020.02.29"]
[Round "7.9"]
[White "Groh Jiri"]
[Black "Kykal Vojtech"]
[Result "1-0"]
[TimeControl "15m + 3s / tah"]
[WhiteElo "2031"]
[BlackElo "1955"]

1. Nf3 {[%clk 00:15:04]} {[%emt 00:00:01]} d5 {[%clk 00:15:05]} 2. c4 {[%clk
00:15:05]} {[%emt 00:00:02]} c6 {[%clk 00:15:07]} {[%emt 00:00:01]} 3. d4
{[%clk 00:14:55]} {[%emt 00:00:13]} Nf6 {[%clk 00:15:09]} {[%emt 00:00:01]} 4.
Bf4 {[%clk 00:14:54]} {[%emt 00:00:04]} e6 {[%clk 00:15:10]} {[%emt 00:00:02]}
5. e3 {[%clk 00:14:55]} {[%emt 00:00:02]} Bd6 {[%clk 00:15:12]} {[%emt
00:00:01]} 6. Bxd6 {[%clk 00:14:56]} {[%emt 00:00:02]} Qxd6 {[%clk 00:15:14]}
{[%emt 00:00:01]} 7. Be2 {[%clk 00:14:58]} {[%emt 00:00:02]} O-O {[%clk
00:14:22]} {[%emt 00:00:55]} 8. O-O {[%clk 00:14:58]} {[%emt 00:00:02]} a6
{[%clk 00:14:24]} 9. Nc3 {[%clk 00:14:58]} {[%emt 00:00:04]} b5 {[%clk
00:14:24]} {[%emt 00:00:03]} 10. cxd5 {[%clk 00:14:25]} {[%emt 00:00:36]} cxd5
{[%clk 00:14:25]} {[%emt 00:00:02]} 11. a3 {[%clk 00:14:17]} {[%emt 00:00:11]}
Nbd7 {[%clk 00:14:27]} {[%emt 00:00:02]} 12. Qc2 {[%clk 00:13:52]} {[%emt
00:00:28]} Bb7 {[%clk 00:14:26]} {[%emt 00:00:03]} 13. Rac1 {[%clk 00:13:52]}
{[%emt 00:00:03]} Rac8 {[%clk 00:14:28]} {[%emt 00:00:01]} 14. Qd3 {[%clk
00:13:47]} {[%emt 00:00:08]} Nb6 {[%clk 00:14:28]} {[%emt 00:00:03]} 15. Ne5
{[%clk 00:13:35]} {[%emt 00:00:15]} Nfd7 {[%clk 00:14:25]} {[%emt 00:00:07]} 16.
f4 {[%clk 00:13:20]} {[%emt 00:00:18]} Nc4 {[%clk 00:14:23]} {[%emt 00:00:04]}
17. Nxc4 {[%clk 00:13:12]} {[%emt 00:00:11]} dxc4 {[%clk 00:14:23]} {[%emt
00:00:04]} 18. Qd1 {[%clk 00:13:02]} {[%emt 00:00:13]} Nb6 {[%clk 00:14:08]}
{[%emt 00:00:18]} 19. Bf3 {[%clk 00:13:01]} {[%emt 00:00:05]} Bd5 {[%clk
00:13:54]} {[%emt 00:00:16]} 20. e4 {[%clk 00:12:54]} {[%emt 00:00:10]} Ba8
{[%clk 00:13:56]} 21. e5 {[%clk 00:12:51]} {[%emt 00:00:06]} Qd7 {[%clk
00:13:48]} {[%emt 00:00:08]} 22. Rc2 {[%clk 00:11:55]} {[%emt 00:01:03]} Rfd8
{[%clk 00:13:45]} {[%emt 00:00:06]} 23. Rd2 {[%clk 00:11:53]} {[%emt 00:00:05]}
Bxf3 {[%clk 00:13:36]} {[%emt 00:00:12]} 24. Rxf3 {[%clk 00:11:55]} {[%emt
00:00:01]} Nd5 {[%clk 00:13:22]} {[%emt 00:00:17]} 25. Ne4 {[%clk 00:11:39]}
{[%emt 00:00:17]} Qa7 {[%clk 00:12:56]} {[%emt 00:00:27]} 26. Qe1 {[%clk
00:11:20]} {[%emt 00:00:26]} Ne7 {[%clk 00:12:25]} {[%emt 00:00:35]} 27. Nd6
{[%clk 00:11:07]} {[%emt 00:00:16]} Rc7 {[%clk 00:11:50]} {[%emt 00:00:35]} 28.
Qh4 {[%clk 00:10:47]} {[%emt 00:00:26]} Rcd7 {[%clk 00:11:42]} {[%emt
00:00:10]} 29. Rh3 {[%clk 00:10:33]} {[%emt 00:00:17]} h6 {[%clk 00:11:41]}
{[%emt 00:00:05]} 30. Qh5 {[%clk 00:10:30]} {[%emt 00:00:06]} Nf5 {[%clk
00:11:23]} {[%emt 00:00:21]} 31. Nxf5 {[%clk 00:09:14]} {[%emt 00:01:18]} exf5
{[%clk 00:11:25]} {[%emt 00:00:01]} 32. e6 {[%clk 00:08:42]} {[%emt 00:00:35]}
Rxd4 {[%clk 00:10:23]} {[%emt 00:01:06]} 33. Qxf7+ {[%clk 00:07:56]} {[%emt
00:00:49]} Qxf7 {[%clk 00:10:24]} {[%emt 00:00:01]} 34. exf7+ {[%clk 00:07:58]}
{[%emt 00:00:01]} Kxf7 {[%clk 00:10:26]} 35. Re2 {[%clk 00:07:46]} {[%emt
00:00:14]} Rd2 {[%clk 00:10:25]} {[%emt 00:00:04]} 36. Rhe3 {[%clk 00:07:26]}
{[%emt 00:00:23]} R8d7 {[%clk 00:10:05]} {[%emt 00:00:23]} 37. Kf2 {[%clk
00:07:24]} {[%emt 00:00:06]} R2d3 {[%clk 00:10:01]} {[%emt 00:00:06]} 38. Re5
{[%clk 00:06:58]} {[%emt 00:00:30]} g6 {[%clk 00:10:00]} {[%emt 00:00:05]} 39.
a4 {[%clk 00:06:29]} {[%emt 00:00:32]} b4 {[%clk 00:09:20]} {[%emt 00:00:43]}
40. Rc5 {[%clk 00:06:23]} {[%emt 00:00:08]} c3 {[%clk 00:09:14]} {[%emt
00:00:09]} 41. bxc3 {[%clk 00:06:01]} {[%emt 00:00:26]} bxc3 {[%clk 00:09:08]}
{[%emt 00:00:09]} 42. Ke1 {[%clk 00:05:41]} {[%emt 00:00:23]} R7d5 {[%clk
00:08:30]} {[%emt 00:00:42]} 43. Rc7+ {[%clk 00:05:33]} {[%emt 00:00:10]} Rd7
{[%clk 00:08:29]} {[%emt 00:00:04]} 44. Rc6 {[%clk 00:05:24]} {[%emt 00:00:12]}
R7d6 {[%clk 00:08:24]} {[%emt 00:00:08]} 45. Rc7+ {[%clk 00:05:23]} {[%emt
00:00:04]} Kf6 {[%clk 00:08:24]} {[%emt 00:00:04]} 46. h3 {[%clk 00:04:17]}
{[%emt 00:01:09]} Re6 {[%clk 00:08:09]} {[%emt 00:00:18]} 47. Rxe6+ {[%clk
00:04:12]} {[%emt 00:00:08]} Kxe6 {[%clk 00:08:11]} 48. Rc6+ {[%clk 00:04:14]}
{[%emt 00:00:02]} Rd6 {[%clk 00:08:13]} 49. Rxc3 {[%clk 00:04:15]} {[%emt
00:00:02]} Rd4 {[%clk 00:08:15]} {[%emt 00:00:01]} 50. Rc6+ {[%clk 00:04:09]}
{[%emt 00:00:10]} Rd6 {[%clk 00:08:14]} {[%emt 00:00:04]} 51. Rc4 {[%clk
00:04:04]} {[%emt 00:00:07]} Kd5 {[%clk 00:08:14]} {[%emt 00:00:03]} 52. Rb4
{[%clk 00:03:59]} {[%emt 00:00:07]} Kc5 {[%clk 00:08:14]} {[%emt 00:00:03]} 53.
Rb8 {[%clk 00:03:59]} {[%emt 00:00:04]} Rb6 {[%clk 00:08:09]} {[%emt 00:00:08]}
54. Rg8 {[%clk 00:03:25]} {[%emt 00:00:38]} Kb4 {[%clk 00:08:10]} {[%emt
00:00:02]} 55. g4 {[%clk 00:03:17]} {[%emt 00:00:10]} fxg4 {[%clk 00:07:55]}
{[%emt 00:00:19]} 56. hxg4 {[%clk 00:03:20]} Kxa4 {[%clk 00:07:56]} {[%emt
00:00:02]} 57. Rh8 {[%clk 00:03:17]} {[%emt 00:00:06]} g5 {[%clk 00:07:32]}
{[%emt 00:00:28]} 58. f5 {[%clk 00:03:14]} {[%emt 00:00:06]} Kb4 {[%clk
00:07:29]} {[%emt 00:00:06]} 59. Rg8 {[%clk 00:03:04]} {[%emt 00:00:13]} Kc5
{[%clk 00:05:44]} {[%emt 00:01:46]} 60. Rg6 {[%clk 00:03:02]} {[%emt 00:00:07]}
Rd6 {[%clk 00:05:45]} {[%emt 00:00:02]} 61. f6 {[%clk 00:02:56]} {[%emt
00:00:09]} Rd7 {[%clk 00:05:24]} {[%emt 00:00:24]} 62. Rxh6 {[%clk 00:02:29]}
{[%emt 00:00:31]} a5 {[%clk 00:05:02]} {[%emt 00:00:24]} 63. Rg6 {[%clk
00:02:31]} {[%emt 00:00:01]} Kd6 {[%clk 00:04:32]} {[%emt 00:00:32]} 64. Rxg5
{[%clk 00:02:04]} {[%emt 00:00:31]} a4 {[%clk 00:04:28]} {[%emt 00:00:07]} 65.
Ra5 {[%clk 00:01:57]} {[%emt 00:00:10]} Ke6 {[%clk 00:04:25]} {[%emt 00:00:04]}
66. g5 {[%clk 00:01:56]} {[%emt 00:00:07]} Kf7 {[%clk 00:04:24]} {[%emt
00:00:04]} 67. Rxa4 {[%clk 00:01:57]} {[%emt 00:00:02]} Kg6 {[%clk 00:04:13]}
{[%emt 00:00:13]} 68. Ra5 {[%clk 00:01:59]} Rd4 {[%clk 00:03:46]} {[%emt
00:00:31]} 69. Ke2 {[%clk 00:02:00]} {[%emt 00:00:02]} Rf4 {[%clk 00:03:47]}
{[%emt 00:00:01]} 70. Ke3 {[%clk 00:02:00]} {[%emt 00:00:04]} Rf1 {[%clk
00:03:48]} {[%emt 00:00:01]} 71. Ke4 {[%clk 00:01:42]} {[%emt 00:00:22]} Re1+
{[%clk 00:03:48]} {[%emt 00:00:02]} 72. Kf4 {[%clk 00:01:38]} {[%emt 00:00:07]}
Re6 {[%clk 00:03:47]} {[%emt 00:00:03]} 73. Ra7 {[%clk 00:01:38]} {[%emt
00:00:04]} Re1 {[%clk 00:03:41]} {[%emt 00:00:09]} 74. Rg7+ {[%clk 00:01:38]}
{[%emt 00:00:03]} Kh5 {[%clk 00:03:42]} {[%emt 00:00:03]} 75. Rh7+ {[%clk
00:01:40]} {[%emt 00:00:02]} Kg6 {[%clk 00:03:44]} {[%emt 00:00:01]} 76. Rg7+
{[%clk 00:01:40]} {[%emt 00:00:02]} Kh5 {[%clk 00:03:46]} {[%emt 00:00:01]} 77.
Kf5 {[%clk 00:01:37]} {[%emt 00:00:07]} Rf1+ {[%clk 00:03:42]} {[%emt
00:00:05]} 78. Ke6 {[%clk 00:01:39]} {[%emt 00:00:02]} Re1+ {[%clk 00:03:28]}
{[%emt 00:00:17]} 79. Kf7 {[%clk 00:01:40]} {[%emt 00:00:01]} Kg4 {[%clk
00:03:25]} {[%emt 00:00:05]} 80. g6 {[%clk 00:01:39]} {[%emt 00:00:05]} Kf5
{[%clk 00:03:25]} {[%emt 00:00:03]} 81. Rg8 {[%clk 00:01:00]} {[%emt 00:00:42]}
Re6 {[%clk 00:03:20]} {[%emt 00:00:06]} 82. g7 {[%clk 00:00:47]} {[%emt
00:00:18]} Rxf6+ {[%clk 00:03:15]} {[%emt 00:00:08]} 83. Ke7 {[%clk 00:00:43]}
{[%emt 00:00:07]} Kg6 {[%clk 00:03:15]} {[%emt 00:00:03]} 84. Rf8 {[%clk
00:00:38]} {[%emt 00:00:08]} Rd6 {[%emt 00:02:07]} 1-0

[Event "15. ročník Dobrovický rapid Tereos TTD a.s."]
[Site "Dobrovice, Czech Republic"]
[Date "2020.02.29"]
[Round "7.10"]
[White "Vavrinec Tomas"]
[Black "Lasek Frantisek"]
[Result "1/2-1/2"]
[TimeControl "15m + 3s / tah"]
[WhiteElo "2025"]
[BlackElo "1932"]

1. c4 {[%clk 00:15:03]} {[%emt 00:00:02]} f5 {[%clk 00:14:57]} {[%emt
00:00:09]} 2. Nc3 {[%clk 00:14:59]} {[%emt 00:00:08]} Nf6 {[%clk 00:14:58]}
{[%emt 00:00:02]} 3. Nf3 {[%clk 00:14:55]} {[%emt 00:00:07]} e6 {[%clk
00:14:52]} {[%emt 00:00:09]} 4. g3 {[%clk 00:14:57]} {[%emt 00:00:02]} d5
{[%clk 00:14:49]} {[%emt 00:00:05]} 5. cxd5 {[%clk 00:14:34]} {[%emt 00:00:26]}
exd5 {[%clk 00:14:49]} {[%emt 00:00:04]} 6. Bg2 {[%clk 00:14:20]} {[%emt
00:00:17]} Bd6 {[%clk 00:14:32]} {[%emt 00:00:19]} 7. Qb3 {[%clk 00:13:34]}
{[%emt 00:00:50]} c6 {[%clk 00:14:20]} {[%emt 00:00:15]} 8. O-O {[%clk
00:13:23]} {[%emt 00:00:13]} Qb6 {[%clk 00:14:00]} {[%emt 00:00:23]} 9. d3
{[%clk 00:12:37]} {[%emt 00:00:50]} Qxb3 {[%clk 00:13:52]} {[%emt 00:00:11]} 10.
axb3 {[%clk 00:12:39]} {[%emt 00:00:01]} O-O {[%clk 00:13:28]} {[%emt
00:00:25]} 11. Be3 {[%clk 00:12:05]} {[%emt 00:00:38]} Na6 {[%clk 00:12:37]}
{[%emt 00:00:54]} 12. Rfc1 {[%clk 00:11:12]} {[%emt 00:00:56]} Bd7 {[%clk
00:12:21]} {[%emt 00:00:20]} 13. Na4 {[%clk 00:09:28]} {[%emt 00:01:48]} Rfe8
{[%clk 00:12:13]} {[%emt 00:00:11]} 14. Kf1 {[%clk 00:09:22]} {[%emt 00:00:08]}
Ng4 {[%clk 00:11:49]} {[%emt 00:00:27]} 15. Bd4 {[%clk 00:08:50]} {[%emt
00:00:35]} Ne5 {[%clk 00:11:31]} {[%emt 00:00:21]} 16. Nc5 {[%clk 00:07:02]}
{[%emt 00:01:51]} Nxc5 {[%clk 00:10:49]} {[%emt 00:00:46]} 17. Bxc5 {[%clk
00:05:46]} {[%emt 00:01:19]} Nxf3 {[%clk 00:09:54]} {[%emt 00:00:58]} 18. Bxf3
{[%clk 00:05:40]} {[%emt 00:00:09]} Bxc5 {[%clk 00:09:34]} {[%emt 00:00:23]} 19.
Rxc5 {[%clk 00:05:41]} {[%emt 00:00:02]} a6 {[%clk 00:08:57]} {[%emt 00:00:39]}
20. Rca5 {[%clk 00:05:12]} {[%emt 00:00:32]} Rad8 {[%clk 00:08:36]} {[%emt
00:00:23]} 21. b4 {[%clk 00:04:58]} {[%emt 00:00:18]} Kf7 {[%clk 00:08:27]}
{[%emt 00:00:12]} 22. Rc5 {[%clk 00:04:29]} {[%emt 00:00:31]} Kf6 {[%clk
00:08:09]} {[%emt 00:00:22]} 23. h4 {[%clk 00:04:08]} {[%emt 00:00:24]} h6
{[%clk 00:08:02]} {[%emt 00:00:10]} 24. e3 {[%clk 00:02:28]} {[%emt 00:01:43]}
g5 {[%clk 00:07:50]} {[%emt 00:00:15]} 25. hxg5+ {[%clk 00:02:06]} {[%emt
00:00:25]} hxg5 {[%clk 00:07:50]} {[%emt 00:00:04]} 26. Kg2 {[%clk 00:02:01]}
{[%emt 00:00:07]} Rh8 {[%clk 00:07:35]} {[%emt 00:00:17]} 27. Rcc1 {[%clk
00:01:48]} {[%emt 00:00:16]} Rh6 {[%clk 00:07:24]} {[%emt 00:00:15]} 28. Rh1
{[%clk 00:01:46]} {[%emt 00:00:05]} Rdh8 {[%clk 00:07:22]} {[%emt 00:00:06]} 29.
d4 {[%clk 00:01:32]} {[%emt 00:00:17]} Rxh1 {[%clk 00:06:29]} {[%emt 00:00:56]}
30. Rxh1 {[%clk 00:01:33]} Rxh1 {[%clk 00:06:20]} {[%emt 00:00:12]} 31. Kxh1
{[%clk 00:01:35]} {[%emt 00:00:01]} Ke6 {[%clk 00:05:52]} {[%emt 00:00:32]} 32.
Be2 {[%clk 00:01:17]} {[%emt 00:00:21]} Kd6 {[%clk 00:05:28]} {[%emt 00:00:26]}
33. Kg1 {[%clk 00:01:05]} {[%emt 00:00:16]} Kc7 {[%clk 00:05:10]} {[%emt
00:00:21]} 34. Kf1 {[%clk 00:01:01]} {[%emt 00:00:07]} Kb6 {[%clk 00:04:32]}
{[%emt 00:00:41]} 35. Ke1 {[%clk 00:01:02]} {[%emt 00:00:02]} a5 {[%clk
00:04:25]} {[%emt 00:00:10]} 36. bxa5+ {[%clk 00:01:03]} {[%emt 00:00:02]} Kxa5
{[%clk 00:04:26]} {[%emt 00:00:02]} 37. Kd2 {[%clk 00:01:05]} Kb4 {[%clk
00:04:19]} {[%emt 00:00:10]} 38. Kc2 {[%clk 00:00:54]} {[%emt 00:00:14]} b6
{[%clk 00:04:15]} {[%emt 00:00:08]} 39. Bd3 {[%clk 00:00:50]} {[%emt 00:00:07]}
c5 {[%clk 00:04:09]} {[%emt 00:00:08]} 40. f3 {[%clk 00:00:18]} {[%emt
00:00:35]} c4 {[%clk 00:03:36]} {[%emt 00:00:36]} 41. Bf1 {[%clk 00:00:18]}
{[%emt 00:00:04]} Ba4+ {[%clk 00:03:20]} {[%emt 00:00:19]} 42. Kc1 {[%clk
00:00:16]} {[%emt 00:00:04]} Bd7 {[%clk 00:03:08]} {[%emt 00:00:14]} 43. Bg2
{[%clk 00:00:18]} {[%emt 00:00:02]} Be6 {[%clk 00:03:04]} {[%emt 00:00:07]} 44.
Kc2 {[%clk 00:00:18]} {[%emt 00:00:03]} b5 {[%clk 00:03:02]} {[%emt 00:00:05]}
45. e4 {[%clk 00:00:11]} {[%emt 00:00:10]} 1/2-1/2